bitfinex-derivatives/quotes_ETHF0:USTF0_20251204
["timestamp","ask_amount","ask_price","bid_price","bid_amount"]
[1764863043159,0.27195986,3213.6,3213.0,3.126]
[1764863044961,3.2078,3213.5,3213.0,3.126]
[1764863045258,5.485,3213.1,3212.9,3.2078]
[1764863045956,12.921,3213.4,3212.9,3.2078]
[1764863045957,10.9689,3213.0,3212.9,3.2078]
[1764863046163,11.23709228,3213.0,3212.4,3.126]
[1764863046355,0.26819228,3212.9,3212.4,3.126]
[1764863047859,5.4455,3212.5,3212.4,3.126]
[1764863048257,3.2078,3213.0,3212.4,8.3454]
[1764863048457,0.26835042,3212.9,3212.8,5.2194]
[1764863048860,5.71385042,3212.9,3212.4,3.126]
[1764863049056,0.26835042,3212.8,3212.4,13.7433]
[1764863049253,0.26835042,3212.9,3212.4,13.7433]
[1764863049453,10.9689,3212.4,3212.3,3.2078]
[1764863049863,11.23725115,3212.4,3212.3,3.2078]
[1764863050157,11.23725115,3212.4,3211.8,3.2147753]
[1764863050457,0.26835115,3212.3,3211.8,3.2147753]
[1764863050661,3.36341,3212.6,3211.8,0.0069753]
[1764863050662,5.4455,3211.9,3211.8,0.0069753]
[1764863050964,40.8,3212.4,3211.8,5.2263753]
[1764863051160,0.268342,3212.3,3211.8,5.2263753]
[1764863052361,0.268342,3212.3,3212.2,10.6173]
[1764863052566,0.26816157,3212.6,3212.5,5.2194]
[1764863052870,40.8,3212.7,3212.6,5.2194]
[1764863053165,0.00399006,3213.6,3212.7,10.6173]
[1764863053458,12.918,3213.5,3213.0,3.0716]
[1764863053654,0.26811821,3213.4,3213.0,3.0716]
[1764863054166,0.26811821,3213.4,3213.3,5.2194]
[1764863054357,0.26811821,3213.4,3213.3,10.6173]
[1764863057162,0.26811821,3213.4,3213.3,5.2194]
[1764863058157,0.26811821,3213.4,3213.3,10.6173]
[1764863058359,0.00399006,3213.6,3213.5,10.6173]
[1764863058859,0.00399006,3213.6,3213.5,13.8251]
[1764863059163,12.915,3214.5,3214.4,10.6173]
[1764863059462,13.18296438,3214.5,3214.4,10.6173]
[1764863059657,18.62846438,3214.5,3214.4,5.2194]
[1764863059854,10.9689,3214.3,3214.1,0.00466919]
[1764863060054,11.23686438,3214.2,3214.1,0.00765567]
[1764863062365,17.39239438,3214.2,3213.0,3.0716]
[1764863062565,2.58837614,3213.8,3213.0,3.0716]
[1764863062757,0.26796438,3213.7,3213.0,3.0716]
[1764863063359,0.27263357,3213.7,3213.0,3.07950598]
[1764863064869,3.2078,3213.5,3213.0,3.07950598]
[1764863065070,0.26786269,3213.4,3213.0,3.07950598]
[1764863065965,0.00466919,3213.7,3213.5,10.6173]
[1764863066173,0.00466919,3213.7,3213.0,3.07950598]
[1764863066174,0.00466919,3213.7,3213.6,13.6889]
[1764863066761,0.00264186,3214.3,3214.2,13.6889]
[1764863066961,0.00264186,3214.3,3214.2,16.8967]
[1764863068359,0.00264186,3214.3,3214.2,11.4988]
[1764863068562,5.19414186,3214.3,3214.2,11.4988]
[1764863068762,0.00264186,3214.3,3214.2,11.4988]
[1764863068970,0.00264186,3214.3,3214.2,8.291]
[1764863069171,12.678518,3214.3,3213.6,6.2794]
[1764863069763,10.0875,3213.7,3213.6,3.2078]
[1764863071474,10.0875,3213.7,3213.2,3.2078]
[1764863071772,10.0875,3213.3,3213.0,3.07950598]
[1764863071975,5.1915,3212.5,3212.4,6.2794]
[1764863072165,12.67587614,3212.5,3212.0,3.2078]
[1764863072365,40.8,3213.0,3212.6,5.233]
[1764863072670,5.1915,3212.7,3212.4,2.8536]
[1764863072871,40.8,3213.0,3212.6,5.233]
[1764863073067,5.62542942,3215.2,3213.9,3.2078]
[1764863073371,1.997,3216.0,3214.6,13.5626]
[1764863073372,2.74382614,3215.8,3214.6,13.5626]
[1764863073670,5.1915,3215.3,3214.2,2.8536]
[1764863073870,40.8,3215.7,3215.2,3.2078]
[1764863074068,45.4688,3215.7,3215.6,3.2078]
[1764863074371,9.7362,3215.2,3215.1,0.00466919]
[1764863074567,12.903,3215.4,3215.1,5.19266919]
[1764863074872,4.6688,3215.2,3215.1,5.19266919]
[1764863075169,4.6688,3215.2,3215.1,5.1959493]
[1764863075666,4.6688,3215.2,3215.1,10.4128493]
[1764863075969,0.00350106,3215.7,3215.1,10.4128493]
[1764863076165,0.00350106,3215.7,3215.6,8.3958]
[1764863076571,9.49740106,3215.7,3215.6,3.2078]
[1764863077267,14.40850106,3215.7,3215.6,3.2078]
[1764863078076,14.67265183,3215.7,3215.6,3.2078]
[1764863079562,55.47265183,3215.7,3215.6,3.2078]
[1764863079977,4.67230106,3215.7,3215.6,8.3958]
[1764863080473,9.49740106,3215.7,3215.6,3.2078]
[1764863080670,4.67230106,3215.7,3215.6,8.3958]
[1764863080974,4.67230106,3215.7,3215.6,13.6127]
[1764863081774,9.7362,3215.2,3215.1,0.0079493]
[1764863082071,26.10411682,3215.2,3214.5,3.2078]
[1764863082372,4.6688,3215.1,3214.9,3.2078]
[1764863082570,12.896,3215.3,3215.2,10.4049]
[1764863082961,17.5648,3215.3,3215.2,0.00305931]
[1764863083166,17.5648,3215.3,3215.2,5.19105931]
[1764863083372,27.301,3215.3,3215.2,0.00305931]
[1764863083578,9.7362,3215.0,3214.5,3.2078]
[1764863084270,4.8251,3214.6,3214.5,3.2078]
[1764863084474,5.79617614,3215.1,3214.5,8.3988378]
[1764863084675,4.6688,3214.7,3214.5,8.3988378]
[1764863085077,4.6688,3214.7,3214.6,10.4049]
[1764863085374,12.896,3215.3,3215.2,5.188]
[1764863085574,12.896,3215.3,3215.2,10.4049]
[1764863085778,17.5648,3215.3,3215.2,10.4049]
[1764863085980,17.5648,3215.3,3215.2,5.188]
[1764863086168,12.896,3215.3,3215.2,10.4049]
[1764863087372,0.00466919,3215.5,3214.9,3.2078]
[1764863087578,0.00466919,3215.5,3215.4,13.2582]
[1764863088083,4.67346919,3215.5,3215.4,13.2582]
[1764863088377,2.58837614,3216.5,3215.4,13.2582]
[1764863088378,3.2078,3217.0,3216.1,11.39]
[1764863088576,3.2078,3217.0,3216.9,12.1559]
[1764863088781,44.0078,3217.4,3216.9,12.1559]
[1764863089175,44.0078,3217.4,3216.9,5.9539]
[1764863089381,44.01116717,3217.4,3216.9,5.95675596]
[1764863089580,44.01116717,3217.4,3217.3,5.9539]
[1764863090392,12.0381,3217.0,3216.9,0.00285596]
[1764863090582,24.9281,3217.0,3216.9,0.00285596]
[1764863091085,2.320234,3216.9,3216.2,3.2078]
[1764863091482,0.01784001,3216.6,3216.2,3.2078]
[1764863091871,0.0249622,3216.4,3216.2,3.21180705]
[1764863092077,12.0381,3216.3,3216.2,3.21180705]
[1764863092386,5.7182,3215.9,3215.3,3.2078]
[1764863092684,0.03920658,3215.6,3215.3,3.2078]
[1764863093086,0.0462446,3215.5,3215.3,3.2078]
[1764863093380,0.0462446,3215.5,3215.3,3.21060942]
[1764863094189,0.0462446,3215.4,3215.3,15.36650942]
[1764863094589,0.00466919,3215.7,3215.6,12.1559]
[1764863099885,0.00466919,3215.7,3215.6,12.1559]
[1764863100187,3.57,3217.2,3216.7,12.1559]
[1764863100188,3.2078,3216.8,3216.7,12.1559]
[1764863100391,44.01116717,3217.4,3216.7,12.1559]
[1764863100786,0.01077124,3217.1,3217.0,5.9539]
[1764863100991,0.01077124,3217.1,3216.6,3.4384]
[1764863101180,0.01077124,3217.1,3215.9,3.2078]
[1764863101181,12.0381,3216.5,3215.9,3.2078]
[1764863101492,0.02119484,3216.2,3215.9,0.00466919]
[1764863101793,3.2078,3216.0,3215.9,12.16056919]
[1764863101982,3.2078,3216.7,3216.1,12.12949336]
[1764863102290,3.2078,3216.7,3216.6,12.1559]
[1764863102994,3.2182236,3216.7,3216.6,12.1559]
[1764863103179,0.0104236,3216.7,3216.3,3.2078]
[1764863103384,0.0156354,3216.5,3215.9,3.21246919]
[1764863103579,0.0156354,3216.5,3216.4,5.9539]
[1764863103781,3.2078,3217.0,3216.9,11.99145767]
[1764863103984,3.2078,3217.8,3217.3,12.0077]
[1764863104180,12.5728,3218.2,3217.3,12.0077]
[1764863104384,41.06453809,3218.1,3217.3,12.0077]
[1764863104689,2.320234,3218.0,3217.3,12.0077]
[1764863104988,40.8,3218.1,3218.0,12.0077]
[1764863105189,0.00464427,3218.4,3218.0,12.0077]
[1764863105400,2.320234,3218.1,3217.7,0.00466171]
[1764863105582,14.4730314,3218.1,3217.7,0.00844719]
[1764863106189,0.0031974,3218.1,3217.7,5.96534719]
[1764863106393,15.3574,3217.8,3217.7,0.00844719]
[1764863106792,15.3574,3217.8,3217.0,3.2078]
[1764863106992,3.2078,3217.8,3217.0,3.2078]
[1764863107193,0.15534,3218.0,3217.0,3.2078]
[1764863107496,0.26402074,3218.0,3217.0,3.2078]
[1764863107798,2.320234,3217.7,3217.2,0.00466171]
[1764863108297,0.1585374,3218.1,3217.0,0.00381205]
[1764863108298,12.30499,3217.1,3217.0,0.00381205]
[1764863108494,18.56899767,3217.1,3217.0,0.00381205]
[1764863108801,12.30499,3217.1,3216.1,3.2078]
[1764863108994,2.320234,3217.3,3216.5,7.1508]
[1764863109391,0.00466171,3217.2,3216.6,0.00466171]
[1764863109592,0.00466171,3217.2,3216.6,0.00698971]
[1764863110098,0.01182482,3216.9,3216.6,0.00698971]
[1764863110297,0.00466171,3217.2,3216.6,0.00698971]
[1764863110298,0.01773723,3216.8,3216.6,0.00698971]
[1764863110901,0.02364964,3216.7,3216.6,0.00698971]
[1764863111695,0.02956205,3216.7,3216.6,12.01468971]
[1764863111895,40.83547446,3216.7,3216.6,12.01468971]
[1764863112800,40.84138687,3216.7,3216.6,12.01468971]
[1764863113000,0.04138687,3216.7,3216.6,12.01468971]
[1764863113198,0.00466171,3217.2,3217.1,12.0077]
[1764863114696,3.2078,3217.9,3217.8,5.9569]
[1764863114901,5.528034,3217.9,3217.2,3.943]
[1764863115101,40.8,3217.8,3216.9,3.2078]
[1764863115409,3.2078,3217.4,3216.6,0.00698971]
[1764863115703,12.1496,3216.7,3216.6,0.00698971]
[1764863116097,5.528034,3217.0,3216.6,0.00698971]
[1764863116713,3.2078,3217.0,3216.6,0.00698971]
[1764863117008,0.00466171,3217.3,3217.2,5.9569]
[1764863117202,0.00466171,3217.3,3216.6,0.00698971]
[1764863117502,3.2078,3217.2,3216.6,0.00698971]
[1764863117704,0.00466171,3217.3,3216.6,0.00698971]
[1764863117903,0.00466171,3217.3,3217.2,12.0077]
[1764863118601,0.00466171,3217.3,3217.2,15.9507]
[1764863118998,0.00466171,3217.3,3217.2,12.0077]
[1764863119193,0.00466171,3217.3,3216.9,3.2078]
[1764863119407,0.00466171,3217.3,3217.2,12.0077]
[1764863119604,0.00466171,3217.3,3217.2,15.9507]
[1764863119913,0.01783811,3217.3,3217.2,12.0077]
[1764863120099,0.01783811,3217.3,3217.2,5.9569]
[1764863120418,0.02319457,3217.3,3217.2,5.9569]
[1764863120800,0.02855103,3217.3,3217.2,5.9569]
[1764863121306,0.03390749,3217.3,3217.2,12.0077]
[1764863121608,0.03926395,3217.3,3217.2,12.0077]
[1764863121997,0.04462041,3217.3,3217.2,12.0077]
[1764863122401,0.04854242,3217.3,3217.2,12.0077]
[1764863122903,0.04854242,3217.3,3216.6,0.00698971]
[1764863122904,12.1496,3216.7,3216.6,0.00698971]
[1764863123094,27.336834,3216.7,3216.6,0.00698971]
[1764863123496,12.1496,3216.2,3215.3,3.2078]
[1764863123701,5.528034,3215.9,3215.3,3.2078]
[1764863123908,3.2078,3215.9,3215.3,3.2078]
[1764863124109,2.320234,3215.5,3215.3,3.2078]
[1764863124308,5.528034,3215.5,3214.9,3.2078]
[1764863124506,0.04388071,3215.2,3214.9,3.21085209]
[1764863124805,0.04388071,3215.2,3215.1,3.943]
[1764863125399,46.328034,3216.7,3215.1,9.943]
[1764863125706,2.320234,3216.8,3216.4,3.2078]
[1764863126010,43.120234,3216.8,3216.4,3.2078]
[1764863126405,43.12297057,3216.8,3216.4,3.2078]
[1764863126711,3.47244894,3216.7,3215.5,3.2078]
[1764863126905,2.320234,3215.9,3215.5,3.2078]
[1764863127098,2.320234,3215.9,3215.1,3.943]
[1764863127705,3.2078,3215.8,3215.1,3.943]
[1764863128105,3.2078,3215.8,3215.3,3.2078]
[1764863128708,2.320234,3215.5,3214.9,3.2155138]
[1764863129614,0.01191832,3215.2,3214.9,3.2155138]
[1764863129818,0.0148979,3215.1,3214.9,3.2155138]
[1764863130014,0.01787748,3215.0,3214.9,3.2155138]
[1764863130215,0.02085706,3215.0,3214.9,3.2155138]
[1764863130416,0.02383664,3215.0,3214.9,3.2155138]
[1764863130912,0.02383664,3215.0,3214.9,0.0077138]
[1764863130913,3.23163664,3215.0,3214.9,0.0077138]
[1764863131113,3.23163664,3215.0,3214.5,3.2078]
[1764863131114,9.23163664,3215.0,3214.5,3.2078]
[1764863131316,2.320234,3214.6,3214.5,3.2078]
[1764863131625,40.82764289,3214.6,3214.5,3.2078]
[1764863131807,40.83144914,3214.6,3214.5,3.2078]
[1764863132007,40.83144914,3214.6,3214.5,3.21002214]
[1764863132207,0.03144914,3214.6,3214.5,3.21002214]
[1764863132404,12.86966171,3215.3,3214.5,3.21002214]
[1764863132604,12.86966171,3215.3,3215.1,3.2078]
[1764863133116,12.86966171,3215.3,3215.1,7.1508]
[1764863133117,0.00466171,3215.3,3215.1,7.1508]
[1764863134218,0.01119983,3215.2,3215.1,3.2078]
[1764863135318,0.01119983,3215.2,3214.7,3.2078]
[1764863136324,0.01119983,3215.0,3214.7,3.2078]
[1764863137026,0.00466171,3215.3,3215.1,3.4339]
[1764863137323,0.00466171,3215.3,3215.1,6.6417]
[1764863138425,0.00466171,3215.3,3215.1,3.2078]
[1764863138927,2.32489571,3215.3,3215.1,3.2078]
[1764863139432,0.00466171,3215.3,3215.1,6.4042]
[1764863140230,0.00466171,3215.3,3215.1,3.2078]
[1764863141121,0.01303836,3215.2,3215.1,6.4042]
[1764863141321,0.01629795,3215.2,3215.1,6.4042]
[1764863141723,0.01955754,3215.2,3215.1,6.4042]
[1764863141920,0.02281713,3215.2,3215.1,6.4042]
[1764863143132,0.02607672,3215.2,3215.1,6.4042]
[1764863143731,0.02933631,3215.2,3215.1,6.4042]
[1764863144130,0.02933631,3215.2,3215.1,18.3205]
[1764863144328,0.00466171,3215.3,3215.2,11.14641015]
[1764863144923,11.0104,3215.2,3215.1,3.2078]
[1764863145124,2.32489571,3215.3,3215.1,2.96433298]
[1764863145831,11.0104,3215.2,3214.7,3.2078]
[1764863146529,2.320234,3214.9,3214.7,3.2078]
[1764863146739,2.320234,3214.9,3214.8,5.7224]
[1764863147033,5.53269571,3215.3,3214.8,11.1793]
[1764863147345,40.8,3215.2,3214.8,11.1793]
[1764863147834,40.8,3215.2,3215.1,5.7224]
[1764863148019,5.53269571,3215.3,3214.7,3.2078]
[1764863148425,40.8,3215.2,3214.7,3.2078]
[1764863148626,5.3031,3214.8,3214.7,3.2078]
[1764863149031,11.0104,3214.8,3214.7,3.2078]
[1764863149228,5.3031,3214.8,3214.7,3.2078]
[1764863149729,2.320234,3214.9,3214.8,5.7224]
[1764863150126,40.8,3215.2,3214.8,5.7224]
[1764863150127,16.07346171,3215.3,3215.2,5.7224]
[1764863150333,16.07346171,3215.3,3214.8,3.352]
[1764863150334,21.37656171,3215.3,3214.8,3.352]
[1764863150528,23.69679571,3215.3,3214.8,3.352]
[1764863150737,64.49679571,3215.3,3214.7,3.2078]
[1764863151239,0.01616649,3215.0,3214.9,11.1793]
[1764863151536,0.00466171,3215.3,3215.2,11.1793]
[1764863152243,0.26515109,3215.8,3215.2,11.1793]
[1764863152536,0.15813657,3216.8,3216.4,5.7224]
[1764863152537,12.86,3216.7,3216.4,5.7224]
[1764863152733,12.86,3216.7,3215.8,3.352]
[1764863152734,2.96578967,3216.6,3215.8,3.352]
[1764863152937,3.19485422,3216.5,3215.7,3.2078]
[1764863153133,0.01922211,3216.1,3215.8,3.2078]
[1764863153325,0.02342686,3216.0,3215.7,3.2078]
[1764863153731,11.0104,3215.7,3215.6,0.00466171]
[1764863153930,14.48355422,3215.7,3215.6,0.00466171]
[1764863154333,14.50698108,3215.7,3215.6,0.00466171]
[1764863154531,55.30698108,3215.7,3215.6,0.00466171]
[1764863154742,61.30698108,3215.7,3215.6,0.00466171]
[1764863155734,61.30698108,3215.7,3214.9,3.2078]
[1764863155939,2.70043545,3215.4,3214.5,3.21002214]
[1764863156138,13.12235422,3215.3,3214.5,3.21002214]
[1764863156442,0.02342686,3214.9,3214.5,3.21002214]
[1764863156638,5.3031,3214.6,3214.5,3.21002214]
[1764863156832,0.02342686,3214.9,3214.5,3.21002214]
[1764863157434,0.02342686,3214.7,3214.5,3.21002214]
[1764863157640,0.02342686,3214.7,3214.6,11.1793]
[1764863159144,0.02419368,3214.7,3214.6,11.1793]
[1764863160045,11.0104,3214.6,3214.5,3.21002214]
[1764863160242,11.27607544,3214.6,3214.5,0.00222214]
[1764863160645,11.30103594,3214.6,3214.5,0.00222214]
[1764863161042,14.4916,3214.2,3214.1,3.08955003]
[1764863161348,14.4916,3214.2,3212.5,0.15561]
[1764863161349,5.7073,3213.3,3212.8,0.80112073]
[1764863161531,19.30231089,3214.2,3213.0,3.352]
[1764863161532,3.2078,3213.5,3213.0,3.352]
[1764863161738,0.03642098,3213.1,3213.0,17.7391]
[1764863161942,0.03991757,3213.1,3213.0,14.39075856]
[1764863162340,0.04564781,3213.1,3213.0,3.21145856]
[1764863162649,0.04564781,3213.1,3213.0,0.00365856]
[1764863162650,11.05604781,3213.1,3213.0,0.00365856]
[1764863162842,11.32141174,3213.1,3213.0,0.00365856]
[1764863163049,11.32714198,3213.1,3213.0,0.00365856]
[1764863163648,11.33104914,3213.1,3213.0,0.00365856]
[1764863164042,0.05528521,3213.1,3213.0,17.24085856]
[1764863164236,0.05528521,3213.1,3213.0,14.03305856]
[1764863164546,0.05528521,3213.1,3213.0,10.79275856]
[1764863165746,0.05528521,3213.1,3213.0,0.00365856]
[1764863165747,5.74518521,3213.1,3213.0,0.00365856]
[1764863166043,11.27388521,3213.1,3213.0,0.00365856]
[1764863166249,14.48168521,3213.1,3213.0,0.00365856]
[1764863166543,14.48168521,3213.1,3212.7,0.00466171]
[1764863166544,11.2186,3212.8,3212.7,0.00466171]
[1764863166737,11.2186,3212.2,3212.1,3.2078]
[1764863166937,24.0746,3212.2,3211.5,3.2078]
[1764863167148,11.2186,3211.6,3211.5,3.2078]
[1764863167339,11.2186,3211.6,3210.9,3.2078]
[1764863167540,2.70043545,3211.4,3210.9,3.21123384]
[1764863167759,2.70043545,3211.4,3210.9,0.00343384]
[1764863167760,3.2078,3211.2,3210.9,0.00343384]
[1764863168342,0.05178862,3211.3,3211.1,0.00466171]
[1764863168745,3.2078,3212.6,3211.1,0.00466171]
[1764863168936,3.2078,3212.6,3211.8,3.2078]
[1764863169355,3.2078,3212.6,3212.2,0.00466171]
[1764863169648,3.2078,3212.6,3211.3,3.2078]
[1764863169838,3.2078,3212.2,3211.3,3.21246171]
[1764863170041,12.857,3212.1,3211.3,3.2078]
[1764863170237,12.857,3212.1,3211.6,3.2403]
[1764863170453,12.857,3212.1,3211.5,0.00466171]
[1764863170642,12.857,3212.1,3211.7,0.00466171]
[1764863171038,12.857,3212.1,3211.8,0.00466171]
[1764863171543,12.857,3212.1,3211.3,3.2078]
[1764863171844,12.857,3212.1,3211.3,3.21246171]
[1764863172451,3.2078,3211.7,3211.4,0.00466171]
[1764863172959,3.2078,3211.7,3211.6,0.00466171]
[1764863172960,5.90823545,3211.7,3211.6,0.00466171]
[1764863173346,3.2078,3211.7,3211.6,0.00466171]
[1764863173551,12.857,3212.1,3211.6,0.00466171]
[1764863174153,12.857,3212.1,3211.6,3.24496171]
[1764863174746,0.00466933,3212.3,3212.0,3.2078]
[1764863176953,0.00349659,3213.1,3212.0,3.2078]
[1764863177152,0.00349659,3213.1,3212.7,3.2078]
[1764863178259,0.00349659,3213.1,3212.9,0.00466171]
[1764863178852,11.2186,3213.0,3212.9,0.00466171]
[1764863179053,11.2186,3212.8,3212.7,3.2078]
[1764863179362,11.2186,3212.7,3212.6,0.00466933]
[1764863179749,11.2186,3212.7,3212.6,0.00933104]
[1764863180252,3.1916,3212.3,3211.2,3.2078]
[1764863180452,3.1916,3211.6,3210.9,0.00343384]
[1764863180645,12.303,3211.5,3210.9,0.00343384]
[1764863180850,40.8,3211.4,3210.9,0.00343384]
[1764863181049,3.2078,3211.0,3210.9,0.00343384]
[1764863181259,44.0078,3211.4,3210.9,0.00809555]
[1764863181459,44.0078,3211.4,3210.9,0.00343384]
[1764863182945,3.2078,3211.3,3210.9,0.00343384]
[1764863183455,40.8,3211.4,3211.1,3.2078]
[1764863183661,0.00466933,3211.5,3211.1,3.2078]
[1764863187060,11.2186,3211.2,3211.1,3.2078]
[1764863187362,12.855,3211.4,3211.1,0.00466171]
[1764863188161,12.855,3211.4,3210.9,0.00343384]
[1764863188162,5.6899,3211.2,3210.9,0.00343384]
[1764863188365,11.2186,3211.0,3210.9,0.00343384]
[1764863188762,11.2186,3210.9,3210.8,0.00343384]
[1764863188967,14.4102,3210.9,3210.8,0.00343384]
[1764863189266,55.2102,3210.9,3210.8,0.00343384]
[1764863189769,55.2102,3210.9,3210.8,0.00709732]
[1764863191068,58.418,3210.9,3210.8,0.00709732]
[1764863192457,58.418,3210.9,3209.5,3.2403]
[1764863192458,71.272,3210.9,3210.2,3.2078]
[1764863192659,71.272,3210.9,3210.3,0.00466171]
[1764863192858,12.854,3210.8,3210.3,0.00466171]
[1764863193469,12.85705361,3210.8,3210.3,0.00848169]
[1764863193665,11.2186,3210.4,3210.3,0.00381998]
[1764863194167,11.2186,3210.4,3210.3,0.00848169]
[1764863194362,11.2186,3210.4,3210.3,0.00381998]
[1764863194562,11.37431,3210.4,3210.3,0.00848169]
[1764863195466,2.7165,3210.0,3209.0,3.2078]
[1764863195766,10.198,3209.7,3209.6,0.00466171]
[1764863195954,50.998,3209.7,3209.6,0.00466171]
[1764863196362,50.998,3209.7,3209.6,0.00851858]
[1764863196765,40.8,3209.7,3209.6,10.54221858]
[1764863196972,0.00466933,3210.0,3209.9,10.5337]
[1764863197365,45.70346933,3210.0,3209.6,0.00851858]
[1764863197866,4.90346933,3210.0,3209.6,0.00851858]
[1764863198268,10.20266933,3210.0,3209.9,0.00466171]
[1764863198465,0.00466933,3210.0,3209.9,5.30466171]
[1764863198864,4.90346933,3210.0,3209.9,0.00466171]
[1764863199070,10.20266933,3210.0,3209.9,0.00466171]
[1764863199270,10.198,3209.7,3209.6,0.00385687]
[1764863199765,2.72116933,3210.0,3209.6,5.30851858]
[1764863199766,0.15574,3209.9,3209.6,5.30851858]
[1764863199969,12.854,3209.7,3209.6,10.54221858]
[1764863200576,26.2598,3209.7,3209.6,0.00385687]
[1764863200865,26.2598,3209.7,3209.3,0.00314304]
[1764863200866,13.07026,3209.4,3209.3,0.00314304]
[1764863201058,15.77069545,3209.4,3209.3,0.00314304]
[1764863201264,15.77069545,3209.4,3209.3,0.00780475]
[1764863201772,15.77069545,3209.4,3209.3,0.00549232]
[1764863201961,15.77069545,3209.4,3209.3,0.01015403]
[1764863202566,15.77069545,3209.4,3208.6,3.2078]
[1764863202567,4.3903,3208.7,3208.6,3.2078]
[1764863202763,17.2433,3208.7,3208.6,3.2078]
[1764863203162,53.653,3208.7,3207.6,1.4102]
[1764863203363,3.2078,3208.2,3208.1,8.8446]
[1764863203560,12.853,3208.5,3208.4,8.8446]
[1764863203771,12.85662335,3208.5,3208.4,8.8446]
[1764863204268,12.85662335,3208.5,3208.4,4.3945]
[1764863204467,12.85662335,3208.5,3208.4,8.8446]
[1764863205264,12.85662335,3208.5,3208.2,2.5867]
[1764863205464,12.85662335,3208.5,3208.1,0.00257892]
[1764863205770,0.00362335,3208.5,3208.4,4.3945]
[1764863205964,0.00362335,3208.5,3208.4,8.8446]
[1764863206367,3.2078,3209.0,3208.9,8.8446]
[1764863207370,13.00877,3209.3,3208.5,3.2078]
[1764863207576,0.00308511,3209.0,3208.9,4.3945]
[1764863207765,3.21088511,3209.0,3208.2,2.5867]
[1764863208563,3.2078,3208.6,3208.5,4.3945]
[1764863209169,3.2078,3208.6,3208.5,8.8446]
[1764863209770,3.2078,3208.6,3208.5,4.3945]
[1764863210272,3.2078,3208.6,3208.5,8.8446]
[1764863210674,3.21088511,3209.0,3208.9,8.8446]
[1764863210869,3.2078,3209.5,3209.4,11.4313]
[1764863211476,0.15577,3209.2,3208.2,2.5867]
[1764863211780,7.5981,3208.7,3208.2,2.5867]
[1764863211974,3.2078,3208.3,3208.2,11.4313]
[1764863213485,3.2078,3208.3,3208.2,8.8446]
[1764863213673,3.2078,3208.3,3208.2,4.3945]
[1764863214281,7.5981,3208.3,3208.1,0.00257892]
[1764863214580,3.2078,3208.3,3208.2,4.3945]
[1764863214785,3.2078,3208.3,3208.2,8.8446]
[1764863214975,3.2078,3208.3,3208.2,11.4313]
[1764863215478,16.0613343,3208.7,3208.2,11.4313]
[1764863215679,3.2103343,3208.7,3208.6,8.8446]
[1764863217685,3.2103343,3208.7,3208.6,4.3945]
[1764863218684,3.2103343,3208.7,3208.2,2.5867]
[1764863219586,3.2103343,3208.7,3208.1,0.00257892]
[1764863219788,4.3903,3208.2,3208.1,0.00257892]
[1764863220284,9.0675,3208.2,3208.1,0.00257892]
[1764863220494,0.0025343,3208.7,3208.2,11.4313]
[1764863220787,0.0025343,3208.7,3208.6,8.8446]
[1764863220984,0.0025343,3208.7,3208.2,2.5867]
[1764863220985,9.0700343,3208.7,3208.2,2.5867]
[1764863221283,9.0700343,3208.7,3208.1,0.00257892]
[1764863221284,9.0675,3208.2,3208.1,0.00257892]
[1764863221479,14.19635825,3208.2,3208.1,0.00257892]
[1764863221985,11.55615825,3208.2,3208.1,0.00257892]
[1764863222184,13.40345825,3208.2,3208.1,0.00257892]
[1764863222980,13.66894482,3208.2,3207.2,3.2078]
[1764863223185,2.33283825,3207.7,3207.2,3.2078]
[1764863223480,0.00466933,3208.0,3205.9,2.25770634]
[1764863223481,4.3903,3207.1,3206.2,4.01041897]
[1764863223680,3.2078,3206.8,3206.7,4.7775]
[1764863223877,7.9505,3206.8,3206.7,0.00375189]
[1764863224076,0.1559,3206.7,3205.8,2.5867]
[1764863224289,3.2078,3206.0,3205.9,9.1637]
[1764863224587,3.2078,3206.0,3205.2,2.5867]
[1764863224588,7.9505,3206.0,3205.2,2.5867]
[1764863224785,11.84793825,3205.4,3204.6,3.38931897]
[1764863224983,11.84793825,3205.4,3204.9,9.1637]
[1764863224984,12.846,3205.3,3204.9,9.1637]
[1764863225190,3.2078,3205.0,3204.6,2.58894057]
[1764863225987,5.54063825,3205.0,3204.6,2.58894057]
[1764863226191,4.7427,3204.7,3204.6,0.00224057]
[1764863226486,9.5151,3204.7,3204.6,0.00224057]
[1764863226985,9.5151,3204.7,3203.7,3.2078]
[1764863227184,3.2078,3204.2,3203.7,3.2078]
[1764863227490,2.33283825,3204.1,3203.4,2.7018]
[1764863227687,12.847,3204.0,3203.4,2.7018]
[1764863227889,12.847,3204.0,3203.4,2.70525248]
[1764863228182,9.5151,3203.5,3203.4,0.00345248]
[1764863228381,4.7427,3203.5,3203.4,0.00345248]
[1764863228583,5.54063825,3203.7,3203.4,0.00345248]
[1764863228777,5.54063825,3203.7,3201.3,1.0532384]
[1764863228778,0.15605,3203.5,3202.5,3.2078]
[1764863228983,3.2078,3202.9,3202.5,3.2078]
[1764863229176,16.0558,3202.9,3202.5,3.2078]
[1764863229384,2.33283825,3202.6,3202.5,3.2078]
[1764863229582,2.33283825,3202.6,3201.6,3.2078]
[1764863229885,3.2078,3201.9,3201.8,0.00223079]
[1764863230281,1.8473,3201.8,3200.9,3.2078]
[1764863230586,1.8473,3201.8,3200.4,3.2078]
[1764863230587,2.33283825,3201.1,3200.4,3.2078]
[1764863230787,2.33283825,3200.5,3200.0,3.2078]
[1764863231081,5.54063825,3200.5,3199.4,3.2078]
[1764863231289,3.2078,3200.1,3199.7,0.00344843]
[1764863231475,0.15619,3200.7,3200.0,2.7018]
[1764863231476,4.22,3200.6,3200.0,2.7018]
[1764863231677,0.00468428,3201.1,3200.8,2.7018]
[1764863231882,0.00468428,3201.1,3200.9,3.2078]
[1764863232084,0.00468428,3201.1,3200.8,2.7018]
[1764863232676,3.2154814,3201.1,3200.8,2.7018]
[1764863232881,3.2154814,3201.1,3200.5,3.2078]
[1764863233285,3.2154814,3201.1,3200.0,2.7018]
[1764863233286,2.33283825,3200.9,3200.0,2.7018]